fUSD/lending_fUSD_20250504
["ID","MTS","AMOUNT","RATE_DAILY","PERIOD"]
[359775767,1746327043224,-450.0,0.00019984,2]
[359775768,1746327043233,-450.0,0.00019984,2]
[359775769,1746327043242,-450.0,0.00019984,2]
[359775770,1746327043251,-450.0,0.00019984,2]
[359775771,1746327043260,-450.0,0.00019985,2]
[359775772,1746327043270,-103796.5223983,0.00019986,2]
[359775773,1746327043279,-32491.6977768,0.00019986,2]
[359775774,1746327043288,-11315.264507,0.00019986,2]
[359775775,1746327043297,-314811.8477107,0.00019986,2]
[359775776,1746327043307,-812.23343656,0.0001999,2]
[359775777,1746327043316,-812.23343656,0.0001999,2]
[359775778,1746327043325,-3210.59,0.0001999,2]
[359775779,1746327043334,-166.87,0.0001999,2]
[359775780,1746327043343,-812.23343656,0.0001999,2]
[359775781,1746327043352,-500.0,0.00019999,2]
[359775782,1746327043362,-500.0,0.00019999,2]
[359775783,1746327043371,-500.0,0.00019999,2]
[359775784,1746327043380,-500.0,0.00019999,2]
[359775785,1746327043389,-500.0,0.00019999,2]
[359775786,1746327043398,-500.0,0.00019999,2]
[359775787,1746327043407,-500.0,0.00019999,2]
[359775788,1746327043416,-266.97429626,0.00019999,2]
[359775789,1746327043426,-233.59773999,0.00019999,2]
[359775790,1746327043436,-500.0,0.00019999,2]
[359775791,1746327043446,-494.66684248,0.00019999,2]
[359775792,1746327043455,-500.0,0.00019999,2]
[359775793,1746327043464,-354.41328032,0.00019999,2]
[359775794,1746327043474,-311.50156723,0.00019999,2]
[359775795,1746327043483,-500.0,0.00019999,2]
[359775796,1746327043492,-500.0,0.00019999,2]
[359775797,1746327043501,-500.0,0.00019999,2]
[359775798,1746327043511,-500.0,0.00019999,2]
[359775799,1746327043521,-500.0,0.00019999,2]
[359775800,1746327043530,-500.0,0.00019999,2]
[359775801,1746327043539,-500.0,0.00019999,2]
[359775802,1746327043549,-500.0,0.00019999,2]
[359775804,1746327043559,-500.0,0.00019999,2]
[359775806,1746327043571,-500.0,0.00019999,2]
[359775807,1746327043580,-500.0,0.00019999,2]
[359775808,1746327043589,-500.0,0.00019999,2]
[359775809,1746327043599,-500.0,0.00019999,2]
[359775810,1746327043609,-306.29342373,0.00019999,2]
[359775811,1746327043618,-500.0,0.00019999,2]
[359775812,1746327043628,-500.0,0.00019999,2]
[359775813,1746327043637,-500.0,0.00019999,2]
[359775814,1746327043647,-500.0,0.00019999,2]
[359775815,1746327043656,-500.0,0.00019999,2]
[359775816,1746327043666,-500.0,0.00019999,2]
[359775817,1746327043675,-500.0,0.00019999,2]
[359775818,1746327043684,-500.0,0.00019999,2]
[359775819,1746327043693,-500.0,0.00019999,2]
[359775820,1746327043702,-500.0,0.00019999,2]
[359775821,1746327043712,-500.0,0.00019999,2]
[359775822,1746327043721,-500.0,0.00019999,2]
[359775824,1746327043731,-500.0,0.00019999,2]
[359775825,1746327043741,-500.0,0.00019999,2]
[359775826,1746327043750,-500.0,0.00019999,2]
[359775827,1746327043760,-500.0,0.00019999,2]
[359775828,1746327043770,-500.0,0.00019999,2]
[359775829,1746327043781,-500.0,0.00019999,2]
[359775831,1746327043790,-500.0,0.00019999,2]
[359775833,1746327043799,-500.0,0.00019999,2]
[359775835,1746327043809,-500.0,0.00019999,2]
[359775836,1746327043818,-500.0,0.00019999,2]
[359775837,1746327043828,-500.0,0.00019999,2]
[359775838,1746327043838,-500.0,0.00019999,2]
[359775839,1746327043847,-500.0,0.00019999,2]
[359775840,1746327043857,-500.0,0.00019999,2]
[359775841,1746327043866,-500.0,0.00019999,2]
[359775842,1746327043876,-500.0,0.00019999,2]
[359775843,1746327043885,-500.0,0.00019999,2]
[359775844,1746327043895,-500.0,0.00019999,2]
[359775845,1746327043904,-500.0,0.00019999,2]
[359775846,1746327043914,-500.0,0.00019999,2]
[359775847,1746327043923,-500.0,0.00019999,2]
[359775848,1746327043933,-500.0,0.00019999,2]
[359775849,1746327043942,-500.0,0.00019999,2]
[359775850,1746327043952,-500.0,0.00019999,2]
[359775851,1746327043961,-500.0,0.00019999,2]
[359775852,1746327043971,-500.0,0.00019999,2]
[359775853,1746327043980,-500.0,0.00019999,2]
[359775854,1746327043990,-181.1975835,0.00019999,2]
[359775855,1746327043999,-500.0,0.00019999,2]
[359775856,1746327044008,-500.0,0.00019999,2]
[359775857,1746327044018,-500.0,0.00019999,2]
[359775858,1746327044027,-500.0,0.00019999,2]
[359775859,1746327044036,-500.0,0.00019999,2]
[359775860,1746327044045,-500.0,0.00019999,2]
[359775861,1746327044055,-500.0,0.00019999,2]
[359775862,1746327044064,-500.0,0.00019999,2]
[359775863,1746327044074,-500.0,0.00019999,2]
[359775864,1746327044083,-500.0,0.00019999,2]
[359775865,1746327044093,-500.0,0.00019999,2]
[359775866,1746327044103,-500.0,0.00019999,2]
[359775867,1746327044113,-380.62934237,0.00019999,2]
[359775868,1746327044122,-500.0,0.00019999,2]
[359775869,1746327044131,-500.0,0.00019999,2]
[359775870,1746327044140,-500.0,0.00019999,2]
[359775871,1746327044150,-500.0,0.00019999,2]
[359775872,1746327044159,-500.0,0.00019999,2]
[359775873,1746327044168,-666.0,0.00019999,2]
[359775874,1746327044177,-500.0,0.00019999,2]
[359775875,1746327044186,-537.04648005,0.00019999,2]
[359775876,1746327044196,-500.0,0.00019999,2]
[359775877,1746327044206,-666.0,0.00019999,2]
[359775878,1746327044216,-300.0,0.00019999,2]
[359775879,1746327044227,-300.0,0.00019999,2]
[359775880,1746327044236,-505.93,0.00019999,2]
[359775881,1746327044245,-1000.0,0.00019999,2]
[359775882,1746327044254,-1116.82702565,0.0002,2]
[359775883,1746327044263,-2838806.45172357,0.0002,2]
[359775884,1746327044272,-333222.74483212,0.0002,2]
[359775885,1746327044307,-6885.31459178,0.0002,2]
[359775887,1746327046470,-450.0,0.00019982,2]
[359775888,1746327046479,-5443.62310489,0.0002,2]
[359775892,1746327103461,534.52,0.00019192,2]
[359775893,1746327114664,151.0,0.0003287,60]
[359775894,1746327175164,153.295406,0.0003287,60]
[359775895,1746327230982,165.33,0.000298,31]
[359775896,1746327231024,165.33,0.000298,31]
[359775897,1746327231087,165.33,0.000298,31]
[359775898,1746327231149,165.33,0.000298,31]
[359775899,1746327231203,165.33,0.000298,31]
[359775900,1746327231275,165.33,0.000298,31]
[359775901,1746327231328,165.33,0.000298,31]
[359775902,1746327231387,165.33,0.000298,31]
[359775903,1746327231453,165.33,0.000298,31]
[359775904,1746327231509,165.33,0.000298,31]
[359775905,1746327231574,165.33,0.000298,31]
[359775906,1746327231634,165.33,0.000298,31]
[359775907,1746327231699,165.33,0.000298,31]
[359775908,1746327231765,165.33,0.000298,31]
[359775909,1746327231820,165.33,0.000298,31]
[359775910,1746327231875,165.33,0.000298,31]
[359775911,1746327240814,250.0,0.00017,2]
[359775912,1746327241903,300.0,0.00019,2]
[359775913,1746327314246,15247.12,0.00019051,2]
[359775914,1746327409662,692.62,0.00018983,2]
[359775915,1746327428303,2825.65673949,0.000301,120]
[359775916,1746327587230,1473.89,0.00018969,2]
[359775918,1746327658113,325.76,0.00017078,2]
[359775919,1746327658311,325.76,0.00019342,2]
[359775920,1746327735055,1112.71567661,0.000195,2]
[359775921,1746327762355,-150.0,0.0001975,2]
[359775922,1746327782483,1000.0,0.00018932,2]
[359775924,1746327842486,152.63,0.000298,31]
[359775925,1746327842534,152.63,0.000298,31]
[359775926,1746327842606,152.63,0.000298,31]
[359775927,1746327842661,152.63,0.000298,31]
[359775928,1746327842732,152.63,0.000298,31]
[359775929,1746327842783,152.63,0.000298,31]
[359775930,1746327842859,152.63,0.000298,31]
[359775931,1746327842970,152.63,0.000298,31]
[359775932,1746327843007,152.63,0.000298,31]
[359775933,1746327843062,152.63,0.000298,31]
[359775934,1746327843116,152.63,0.000298,31]
[359775935,1746327843206,152.63,0.000298,31]
[359775936,1746327843251,152.63,0.000298,31]
[359775937,1746327843352,152.63,0.000298,31]
[359775938,1746327881992,791.0,0.00032877,60]
[359775939,1746327922174,500.0,0.00032877,60]
[359775940,1746327944958,500.0,0.00032877,60]
[359775941,1746327954738,263.29388485,0.00032877,60]
[359775942,1746327976027,500.0,0.00032877,60]
[359775943,1746327982520,500.0,0.00032877,60]
[359775944,1746327989619,500.0,0.00032877,60]
[359775945,1746327995961,500.0,0.00032877,60]
[359775946,1746328002063,500.0,0.00032877,60]
[359775947,1746328008404,500.0,0.00032877,60]
[359775948,1746328015551,500.0,0.00032877,60]
[359775989,1746328058811,500.0,0.00032877,60]
[359775990,1746328067145,500.0,0.00032877,60]
[359775991,1746328076392,500.0,0.00032877,60]
[359775992,1746328091991,500.0,0.00032877,60]
[359775995,1746328232244,-191.45630862,0.00019699,2]
[359775996,1746328232254,-200.0,0.000197,2]
[359775997,1746328232263,-430.19077916,0.000197,2]
[359775998,1746328232272,-200.0,0.00019712,2]
[359775999,1746328232282,-167.64353092,0.00019745,2]
[359776000,1746328232291,-200.0,0.00019745,2]
[359776001,1746328232300,-924.0,0.0001975,2]
[359776002,1746328232309,-255.99872908,0.00019785,2]
[359776003,1746328232318,-523.07945037,0.00019799,2]
[359776004,1746328232327,-523.07945034,0.0001981,2]
[359776005,1746328232336,-523.07945034,0.00019821,2]
[359776006,1746328232346,-523.07945034,0.00019833,2]
[359776007,1746328232355,-523.07945034,0.00019844,2]
[359776008,1746328232364,-523.07945034,0.00019855,2]
[359776009,1746328232373,-12.23396615,0.00019866,2]
[359776010,1746328232385,-425.18333004,0.00019866,2]
[359776011,1746328232399,-85.66215415,0.00019866,2]
[359776012,1746328232408,-151.0,0.0001987,2]
[359776013,1746328232418,-207.4,0.0001987,2]
[359776014,1746328232427,-1200.0,0.00019872,2]
[359776015,1746328232436,-300.0,0.00019872,2]
[359776016,1746328232445,-596.9165218,0.00019873,2]
[359776017,1746328232454,-459.63624078,0.00019873,2]
[359776018,1746328232463,-500.0,0.00019873,2]
[359776019,1746328232472,-504.04939422,0.00019873,2]
[359776020,1746328232481,-284.54362884,0.00019873,2]
[359776021,1746328232490,-500.0,0.00019873,2]
[359776022,1746328232499,-500.0,0.00019873,2]
[359776023,1746328232508,-523.07945034,0.00019878,2]
[359776024,1746328232517,-354.41328032,0.00019881,2]
[359776025,1746328232526,-500.0,0.00019881,2]
[359776026,1746328232536,-500.0,0.00019881,2]
[359776027,1746328232545,-500.0,0.00019881,2]
[359776028,1746328232554,-500.0,0.00019881,2]
[359776029,1746328232563,-500.0,0.00019881,2]
[359776030,1746328232572,-500.0,0.00019881,2]
[359776031,1746328232582,-500.0,0.00019881,2]
[359776032,1746328232591,-500.0,0.00019881,2]
[359776033,1746328232601,-500.0,0.00019881,2]
[359776034,1746328232610,-500.0,0.00019881,2]
[359776035,1746328232619,-500.0,0.00019881,2]
[359776036,1746328232628,-500.0,0.00019881,2]
[359776037,1746328232637,-500.0,0.00019881,2]
[359776038,1746328232646,-500.0,0.00019881,2]
[359776039,1746328232655,-500.0,0.00019881,2]
[359776040,1746328232665,-500.0,0.00019881,2]
[359776041,1746328232674,-500.0,0.00019881,2]
[359776042,1746328232684,-500.0,0.00019881,2]
[359776043,1746328232693,-500.0,0.00019881,2]
[359776044,1746328232702,-279.00729571,0.00019881,2]
[359776045,1746328232718,-220.99270429,0.00019881,2]
[359776046,1746328232728,-500.0,0.00019881,2]
[359776047,1746328232738,-500.0,0.00019881,2]
[359776048,1746328232747,-500.0,0.00019881,2]
[359776050,1746328232758,-500.0,0.00019881,2]
[359776051,1746328232768,-500.0,0.00019881,2]
[359776053,1746328232777,-500.0,0.00019881,2]
[359776055,1746328232787,-500.0,0.00019881,2]
[359776057,1746328232796,-500.0,0.00019881,2]
[359776059,1746328232806,-500.0,0.00019881,2]
[359776060,1746328232815,-500.0,0.00019881,2]
[359776061,1746328232825,-500.0,0.00019881,2]
[359776062,1746328232834,-500.0,0.00019881,2]
[359776063,1746328232845,-500.0,0.00019881,2]
[359776064,1746328232854,-185.33238992,0.00019881,2]
[359776065,1746328232863,-500.0,0.00019881,2]
[359776066,1746328232873,-312.96828945,0.00019881,2]
[359776067,1746328232897,-187.03171055,0.00019881,2]
[359776068,1746328232906,-500.0,0.00019881,2]
[359776069,1746328232916,-500.0,0.00019881,2]
[359776070,1746328232930,-500.0,0.00019881,2]
[359776071,1746328232940,-500.0,0.00019881,2]
[359776072,1746328232950,-500.0,0.00019881,2]
[359776073,1746328232960,-500.0,0.00019881,2]
[359776074,1746328232970,-500.0,0.00019881,2]
[359776075,1746328232978,-500.0,0.00019881,2]
[359776076,1746328232988,-500.0,0.00019881,2]
[359776077,1746328233238,-500.0,0.00019881,2]
[359776078,1746328233248,-500.0,0.00019881,2]
[359776079,1746328233258,-500.0,0.00019881,2]
[359776080,1746328233268,-500.0,0.00019881,2]
[359776081,1746328233278,-500.0,0.00019881,2]
[359776082,1746328233287,-500.0,0.00019881,2]
[359776083,1746328233297,-500.0,0.00019881,2]
[359776084,1746328233306,-500.0,0.00019881,2]
[359776085,1746328233315,-500.0,0.00019881,2]
[359776086,1746328233325,-318.53323899,0.00019881,2]
[359776087,1746328233335,-500.0,0.00019881,2]
[359776088,1746328233345,-500.0,0.00019881,2]
[359776089,1746328233355,-500.0,0.00019881,2]
[359776090,1746328233365,-500.0,0.00019881,2]
[359776091,1746328233375,-500.0,0.00019881,2]
[359776092,1746328233386,-500.0,0.00019881,2]
[359776093,1746328233396,-500.0,0.00019881,2]
[359776094,1746328233406,-500.0,0.00019881,2]
[359776095,1746328233415,-500.0,0.00019881,2]
[359776096,1746328233425,-500.0,0.00019881,2]
[359776097,1746328233435,-500.0,0.00019881,2]
[359776098,1746328233445,-500.0,0.00019881,2]
[359776099,1746328233455,-500.0,0.00019881,2]
[359776100,1746328233466,-500.0,0.00019881,2]
[359776101,1746328233476,-500.0,0.00019881,2]
[359776102,1746328233486,-500.0,0.00019881,2]
[359776103,1746328233496,-500.0,0.00019881,2]
[359776104,1746328233506,-500.0,0.00019881,2]
[359776105,1746328233516,-500.0,0.00019881,2]
[359776106,1746328233526,-200.0,0.00019881,2]
[359776107,1746328233536,-175279.8846,0.00019882,2]
[359776108,1746328233547,-450.0,0.00019884,2]
[359776109,1746328233556,-450.0,0.00019884,2]
[359776110,1746328233566,-450.0,0.00019884,2]
[359776111,1746328233576,-561.76,0.00019884,2]
[359776112,1746328233586,-1265.43,0.00019884,2]
[359776113,1746328233595,-170.89951886,0.00019884,2]
[359776114,1746328233617,-839.1315495,0.00019884,2]
[359776115,1746328233630,-453.78763153,0.00019884,2]
[359776116,1746328233642,-1131.41130011,0.00019884,2]
[359776117,1746328233651,-507.56620344,0.00019884,2]
[359776118,1746328233662,-450.0,0.00019885,2]
[359776119,1746328233672,-450.0,0.00019885,2]
[359776120,1746328233682,-450.0,0.00019885,2]
[359776121,1746328233692,-450.0,0.00019885,2]
[359776122,1746328233703,-450.0,0.00019885,2]
[359776123,1746328233712,-450.0,0.00019885,2]
[359776124,1746328233723,-450.0,0.00019885,2]
[359776125,1746328233734,-733.78,0.00019885,2]
[359776126,1746328233744,-450.0,0.00019885,2]
[359776127,1746328233754,-450.0,0.00019885,2]
[359776128,1746328233764,-450.0,0.00019885,2]
[359776129,1746328233775,-450.0,0.00019885,2]
[359776130,1746328233784,-747.3,0.00019885,2]
[359776131,1746328233794,-394.10829945,0.00019885,2]
[359776132,1746328233815,-55.89170055,0.00019885,2]
[359776133,1746328233825,-372.81993184,0.00019885,2]
[359776134,1746328236100,1903.99761204,0.000298,31]
[359776150,1746328240420,-450.0,0.00019884,2]
[359776151,1746328240430,-1810.56006816,0.00019885,2]
[359776152,1746328240439,-871.49,0.00019885,2]
[359776153,1746328240449,-407.45824495,0.00019885,2]
[359776154,1746328240458,-450.0,0.00019885,2]
[359776155,1746328240468,-450.0,0.00019885,2]
[359776156,1746328240477,-502.12714898,0.00019885,2]
[359776157,1746328240487,-450.0,0.00019885,2]
[359776158,1746328240497,-450.0,0.00019885,2]
[359776159,1746328240506,-58569.84,0.00019885,2]
[359776160,1746328240515,-450.0,0.00019885,2]
[359776161,1746328240525,-450.0,0.00019885,2]
[359776162,1746328240534,-3831.85,0.00019885,2]
[359776163,1746328240543,-450.0,0.00019885,2]
[359776164,1746328240552,-450.0,0.00019885,2]
[359776165,1746328240562,-450.0,0.00019885,2]
[359776166,1746328240571,-565.74,0.00019885,2]
[359776167,1746328240581,-450.0,0.00019885,2]
[359776168,1746328240590,-450.0,0.00019885,2]
[359776169,1746328240600,-450.0,0.00019885,2]
[359776170,1746328240609,-2510.71,0.00019885,2]
[359776171,1746328240619,-450.0,0.00019885,2]
[359776172,1746328240629,-610.23,0.00019885,2]
[359776173,1746328240639,-450.0,0.00019885,2]
[359776174,1746328240648,-1404.13,0.00019885,2]
[359776175,1746328240658,-1214.57,0.00019885,2]
[359776176,1746328240667,-450.0,0.00019885,2]
[359776177,1746328240677,-450.0,0.00019885,2]
[359776178,1746328240688,-590.09,0.00019885,2]
[359776179,1746328240697,-450.0,0.00019885,2]
[359776180,1746328240707,-474.25,0.00019885,2]
[359776181,1746328240720,-450.0,0.00019885,2]
[359776182,1746328240732,-929.19,0.00019885,2]
[359776183,1746328240745,-3315.86,0.00019885,2]
[359776184,1746328240759,-450.0,0.00019885,2]
[359776185,1746328240771,-688.28,0.00019885,2]
[359776186,1746328240784,-4006.01,0.00019885,2]
[359776187,1746328240795,-450.0,0.00019885,2]
[359776188,1746328240806,-2752.0,0.00019885,2]
[359776189,1746328240816,-56829.25736409,0.00019886,2]
[359776190,1746328240828,-523.07945034,0.00019889,2]
[359776191,1746328240840,-450.0,0.00019899,2]
[359776192,1746328240851,-450.0,0.00019899,2]
[359776193,1746328240863,-1606.81,0.00019899,2]
[359776194,1746328240874,-450.0,0.00019899,2]
[359776195,1746328240887,-2546.34,0.00019899,2]
[359776196,1746328240899,-450.0,0.00019899,2]
[359776197,1746328240911,-18597.31,0.00019899,2]
[359776198,1746328240930,-450.0,0.00019899,2]
[359776199,1746328240942,-1032.98,0.00019899,2]
[359776200,1746328240953,-2875.47,0.00019899,2]
[359776201,1746328240964,-13121.89,0.00019899,2]
[359776202,1746328240975,-972.46,0.00019899,2]
[359776203,1746328240986,-539.82013308,0.00019899,2]
[359776204,1746328240998,-7971.33,0.00019899,2]
[359776205,1746328241009,-495.7296534,0.00019899,2]
[359776206,1746328241020,-474.21236692,0.00019899,2]
[359776207,1746328241032,-450.0,0.00019899,2]
[359776208,1746328241043,-450.0,0.00019899,2]
[359776209,1746328241055,-450.0,0.00019899,2]
[359776211,1746328241066,-450.0,0.00019899,2]
[359776212,1746328241078,-462.55783858,0.00019899,2]
[359776213,1746328241089,-666.17,0.00019899,2]
[359776214,1746328241101,-459.46449075,0.00019899,2]
[359776215,1746328241111,-597.93,0.00019899,2]
[359776216,1746328241124,-179.5271861,0.00019899,2]
[359776217,1746328241135,-450.0,0.00019899,2]
[359776218,1746328241146,-450.0,0.00019899,2]
[359776219,1746328241158,-479.1396632,0.00019899,2]
[359776220,1746328241170,-450.0,0.00019899,2]
[359776221,1746328241181,-12500.0,0.000199,2]
[359776222,1746328241192,-849.87316498,0.000199,2]
[359776223,1746328241203,-886.15359523,0.000199,2]
[359776224,1746328241214,-523.07945034,0.000199,2]
[359776225,1746328241226,-160.39271898,0.000199,3]
[359776226,1746328241237,-330.06537042,0.000199,2]
[359776227,1746328241248,-3758.0384395,0.000199,2]
[359776228,1746328241260,-10165.47589756,0.000199,2]
[359776229,1746328241271,-645.75790586,0.000199,2]
[359776230,1746328241281,-1210.0,0.00019934,2]
[359776231,1746328241292,-800.0,0.00019934,2]
[359776232,1746328241303,-655.827,0.00019934,2]
[359776233,1746328241315,-550.0,0.00019934,2]
[359776234,1746328241326,-1451.0,0.00019934,2]
[359776235,1746328241338,-1040.587,0.00019934,2]
[359776236,1746328241350,-2074.0,0.00019934,2]
[359776237,1746328241361,-524.31196993,0.00019973,2]
[359776238,1746328241372,-878.0,0.00019975,2]
[359776239,1746328241383,-6759.0,0.00019975,2]
[359776240,1746328241393,-2159.0,0.00019975,2]
[359776241,1746328241404,-4010.0,0.00019975,2]
[359776242,1746328241415,-878.0,0.00019975,2]
[359776243,1746328241425,-280.546,0.00019975,2]
[359776244,1746328241435,-560.56,0.00019981,2]
[359776245,1746328241446,-450.0,0.00019981,2]
[359776246,1746328241456,-481.33,0.00019981,2]
[359776247,1746328241467,-450.0,0.00019981,2]
[359776248,1746328241479,-450.0,0.00019981,2]
[359776249,1746328241492,-450.0,0.00019981,2]
[359776250,1746328241504,-450.0,0.00019981,2]
[359776251,1746328241514,-450.0,0.00019981,2]
[359776252,1746328241524,-450.0,0.00019981,2]
[359776253,1746328241534,-450.0,0.00019981,2]
[359776254,1746328241544,-450.0,0.00019981,2]
[359776255,1746328241554,-450.0,0.00019981,2]
[359776256,1746328241564,-450.0,0.00019981,2]
[359776257,1746328241575,-427.55567073,0.00019981,2]
[359776258,1746328241587,-450.0,0.00019981,2]
[359776259,1746328241599,-450.0,0.00019981,2]
[359776260,1746328241608,-450.0,0.00019981,2]
[359776261,1746328241619,-450.0,0.00019981,2]
[359776262,1746328241628,-450.0,0.00019981,2]
[359776263,1746328241639,-450.0,0.00019981,2]
[359776264,1746328241649,-450.0,0.00019981,2]
[359776265,1746328241659,-450.0,0.00019981,2]
[359776266,1746328241670,-847.94,0.00019981,2]
[359776267,1746328241680,-450.0,0.00019981,2]
[359776268,1746328241690,-450.0,0.00019981,2]
[359776269,1746328241701,-450.0,0.00019981,2]
[359776270,1746328241711,-450.0,0.00019981,2]
[359776271,1746328241722,-450.0,0.00019981,2]
[359776272,1746328241735,-450.0,0.00019981,2]
[359776273,1746328241746,-450.0,0.00019981,2]
[359776274,1746328241756,-538.51,0.00019981,2]
[359776275,1746328241766,-455.89,0.00019981,2]
[359776276,1746328241777,-450.0,0.00019981,2]
[359776277,1746328241787,-450.0,0.00019981,2]
[359776278,1746328241798,-450.0,0.00019981,2]
[359776279,1746328241808,-450.0,0.00019981,2]
[359776280,1746328241818,-450.0,0.00019981,2]
[359776281,1746328241829,-450.0,0.00019981,2]
[359776282,1746328241840,-450.0,0.00019981,2]
[359776283,1746328241850,-450.0,0.00019981,2]
[359776284,1746328241860,-463.52,0.00019981,2]
[359776285,1746328241870,-450.0,0.00019981,2]
[359776286,1746328241881,-1219.54,0.00019981,2]
[359776287,1746328241892,-450.0,0.00019981,2]
[359776288,1746328241903,-450.0,0.00019981,2]
[359776289,1746328241914,-450.0,0.00019981,2]
[359776290,1746328241927,-459.30873225,0.00019981,2]
[359776291,1746328241938,-450.0,0.00019981,2]
[359776292,1746328241949,-450.0,0.00019981,2]
[359776293,1746328241959,-450.0,0.00019981,2]
[359776294,1746328241970,-590.19,0.00019981,2]
[359776295,1746328241980,-487.00270582,0.00019981,2]
[359776296,1746328241991,-595.85,0.00019981,2]
[359776297,1746328242003,-450.0,0.00019981,2]
[359776298,1746328242013,-450.0,0.00019981,2]
[359776299,1746328242023,-450.0,0.00019981,2]
[359776300,1746328242033,-450.0,0.00019981,2]
[359776301,1746328242043,-450.0,0.00019981,2]
[359776302,1746328242053,-921.38,0.00019981,2]
[359776303,1746328242064,-450.0,0.00019981,2]
[359776304,1746328242074,-450.0,0.00019981,2]
[359776305,1746328242086,-450.0,0.00019981,2]
[359776306,1746328242096,-453.12,0.00019981,2]
[359776307,1746328242106,-472.19919412,0.00019981,2]
[359776308,1746328242116,-450.0,0.00019981,2]
[359776309,1746328242127,-644.42,0.00019981,2]
[359776310,1746328242137,-450.0,0.00019981,2]
[359776311,1746328242147,-481.59,0.00019981,2]
[359776312,1746328242158,-450.0,0.00019981,2]
[359776313,1746328242168,-450.0,0.00019981,2]
[359776314,1746328242178,-450.0,0.00019981,2]
[359776315,1746328242188,-363.53218527,0.00019981,2]
[359776316,1746328242198,-469.68426347,0.00019981,2]
[359776317,1746328242209,-450.0,0.00019981,2]
[359776318,1746328242219,-450.0,0.00019981,2]
[359776319,1746328242230,-450.79,0.00019981,2]
[359776320,1746328242240,-376.23674134,0.00019981,2]
[359776321,1746328242250,-450.0,0.00019981,2]
[359776322,1746328242260,-1175.21,0.00019981,2]
[359776323,1746328242271,-513.65,0.00019981,2]
[359776324,1746328242280,-528.28,0.00019981,2]
[359776325,1746328242291,-450.0,0.00019981,2]
[359776326,1746328242300,-450.0,0.00019981,2]
[359776327,1746328242311,-450.0,0.00019981,2]
[359776328,1746328242321,-478.75,0.00019981,2]
[359776329,1746328242331,-450.0,0.00019981,2]
[359776330,1746328242341,-566.84,0.00019981,2]
[359776331,1746328242352,-450.0,0.00019981,2]
[359776332,1746328242362,-450.0,0.00019982,2]
[359776333,1746328242372,-458.37,0.00019982,2]
[359776334,1746328242383,-450.0,0.00019982,2]
[359776335,1746328242393,-450.0,0.00019982,2]
[359776336,1746328242403,-450.0,0.00019982,2]
[359776337,1746328242414,-643.66,0.00019982,2]
[359776338,1746328242425,-450.0,0.00019982,2]
[359776339,1746328242436,-450.0,0.00019982,2]
[359776340,1746328242446,-450.0,0.00019982,2]
[359776341,1746328242456,-550.88,0.00019982,2]